[Event "Late-Titled-Tuesday-Blitz-April-02-2024"]
[Site "Chess.com"]
[Date "2024.04.02"]
[Round "3"]
[White "FREZZY23"]
[Black "BabageldiAnnaberdiyev"]
[Result "0-1"]
[WhiteElo "2407"]
[BlackElo "2602"]
[TimeControl "180+1"]
[EndTime "14:28:20 PDT"]
[Termination "BabageldiAnnaberdiyev won on time"]

1. Nf3 {[%clk 0:02:57.3]} 1... e6 {[%clk 0:03:00.9]} 2. g3 {[%clk 0:02:56.9]}
2... d5 {[%clk 0:03:00.1]} 3. Bg2 {[%clk 0:02:57.5]} 3... f5 {[%clk 0:03:00.5]}
4. O-O {[%clk 0:02:58.3]} 4... Nf6 {[%clk 0:03:01]} 5. c4 {[%clk 0:02:58.6]}
5... c6 {[%clk 0:03:00.8]} 6. d3 {[%clk 0:02:59]} 6... Bc5 {[%clk 0:03:00.7]} 7.
Nc3 {[%clk 0:02:58.7]} 7... O-O {[%clk 0:03:00.5]} 8. d4 {[%clk 0:02:58.5]} 8...
Bd6 {[%clk 0:03:00]} 9. Ne5 {[%clk 0:02:57.1]} 9... Nbd7 {[%clk 0:02:59.6]} 10.
Nxd7 {[%clk 0:02:55.8]} 10... Bxd7 {[%clk 0:02:58.8]} 11. f3 {[%clk 0:02:55.9]}
11... Bb4 {[%clk 0:02:27]} 12. Qb3 {[%clk 0:02:53.8]} 12... a5 {[%clk
0:02:26.1]} 13. a3 {[%clk 0:02:52.8]} 13... Bxc3 {[%clk 0:02:15.9]} 14. Qxc3
{[%clk 0:02:49.9]} 14... a4 {[%clk 0:02:08.8]} 15. Bg5 {[%clk 0:02:32.9]} 15...
h6 {[%clk 0:02:06.4]} 16. Bxf6 {[%clk 0:02:30.7]} 16... Rxf6 {[%clk 0:02:01.4]}
17. e4 {[%clk 0:02:29.2]} 17... fxe4 {[%clk 0:02:02.3]} 18. fxe4 {[%clk
0:02:29.2]} 18... dxc4 {[%clk 0:01:52.7]} 19. Qxc4 {[%clk 0:02:21.3]} 19...
Rxf1+ {[%clk 0:01:52.5]} 20. Rxf1 {[%clk 0:02:21]} 20... Qb6 {[%clk 0:01:53.2]}
21. Kh1 {[%clk 0:02:10.1]} 21... Qxb2 {[%clk 0:01:49.3]} 22. d5 {[%clk
0:02:10.3]} 22... exd5 {[%clk 0:01:47.9]} 23. exd5 {[%clk 0:02:10.3]} 23... Kh8
{[%clk 0:01:48.1]} 24. Qc5 {[%clk 0:01:34.5]} 24... cxd5 {[%clk 0:01:37.4]} 25.
Bxd5 {[%clk 0:01:31.7]} 25... Bc6 {[%clk 0:01:37.4]} 26. Rf8+ {[%clk 0:00:20.6]}
26... Rxf8 {[%clk 0:01:35.6]} 27. Qxf8+ {[%clk 0:00:21.5]} 27... Kh7 {[%clk
0:01:36]} 28. Qg8+ {[%clk 0:00:22.1]} 28... Kg6 {[%clk 0:01:35.6]} 29. Qe6+
{[%clk 0:00:09.1]} 29... Qf6 {[%clk 0:01:30]} 30. Qe4+ {[%clk 0:00:07]} 30...
Qf5 {[%clk 0:01:23.3]} 31. Bxc6 {[%clk 0:00:07.3]} 31... bxc6 {[%clk 0:01:21.8]}
32. Qxc6+ {[%clk 0:00:07.9]} 32... Kh7 {[%clk 0:01:16.8]} 33. Qc1 {[%clk
0:00:07.9]} 33... Qf3+ {[%clk 0:01:15.4]} 34. Kg1 {[%clk 0:00:07.9]} 34... Qd3
{[%clk 0:01:12.4]} 35. Kf2 {[%clk 0:00:07.7]} 35... h5 {[%clk 0:01:11.2]} 36.
Qe3 {[%clk 0:00:07]} 36... Qc2+ {[%clk 0:01:09.9]} 37. Kf3 {[%clk 0:00:07.5]}
37... Qb3 {[%clk 0:00:57.8]} 38. Kf4 {[%clk 0:00:05.7]} 38... g5+ {[%clk
0:00:56.8]} 39. Ke4 {[%clk 0:00:03.1]} 39... Qe6+ {[%clk 0:00:36.6]} 40. Kd4
{[%clk 0:00:02.1]} 40... Qb6+ {[%clk 0:00:36]} 41. Ke4 {[%clk 0:00:02]} 41...
Qc6+ {[%clk 0:00:36.1]} 42. Kd4 {[%clk 0:00:02.4]} 42... Kh6 {[%clk 0:00:36.1]}
43. Qe5 {[%clk 0:00:01.3]} 43... Qb6+ {[%clk 0:00:33.5]} 44. Qc5 {[%clk
0:00:02]} 44... Qb2+ {[%clk 0:00:33.5]} 45. Kd5 {[%clk 0:00:02.3]} 45... Qb3+
{[%clk 0:00:31.7]} 46. Kd6 {[%clk 0:00:02.3]} 46... h4 {[%clk 0:00:32.1]} 47.
Qc6 {[%clk 0:00:02]} 47... Kh5 {[%clk 0:00:32]} 48. Qc5 {[%clk 0:00:01.4]} 48...
hxg3 {[%clk 0:00:30.7]} 49. hxg3 {[%clk 0:00:02.3]} 49... Kg4 {[%clk 0:00:31.2]}
50. Kc6 {[%clk 0:00:03.2]} 50... Kh3 {[%clk 0:00:20.2]} 51. Kd7 {[%clk
0:00:02.7]} 51... g4 {[%clk 0:00:19.5]} 52. Qd6 {[%clk 0:00:01.6]} 52... Kg2
{[%clk 0:00:18.6]} 53. Ke7 {[%clk 0:00:01.5]} 53... Kf3 {[%clk 0:00:18.3]} 54.
Kf6 {[%clk 0:00:01.4]} 54... Qe3 {[%clk 0:00:17.4]} 0-1

[Event "Late-Titled-Tuesday-Blitz-April-02-2024"]
[Site "Chess.com"]
[Date "2024.04.02"]
[Round "3"]
[White "Hirna2005"]
[Black "flawian2008"]
[Result "0-1"]
[WhiteElo "2316"]
[BlackElo "2534"]
[TimeControl "180+1"]
[EndTime "14:28:24 PDT"]
[Termination "flawian2008 won by resignation"]

1. e4 {[%clk 0:03:00.9]} 1... c5 {[%clk 0:02:59.8]} 2. c3 {[%clk 0:03:00.7]}
2... Nf6 {[%clk 0:02:57.2]} 3. e5 {[%clk 0:03:00.6]} 3... Nd5 {[%clk 0:02:57.5]}
4. Nf3 {[%clk 0:03:01.3]} 4... Nc6 {[%clk 0:02:57.3]} 5. Bc4 {[%clk 0:03:01.1]}
5... e6 {[%clk 0:02:57.3]} 6. d4 {[%clk 0:03:00.8]} 6... cxd4 {[%clk 0:02:57]}
7. cxd4 {[%clk 0:03:01.1]} 7... d6 {[%clk 0:02:57.7]} 8. O-O {[%clk 0:03:00.4]}
8... Be7 {[%clk 0:02:57.8]} 9. Qe2 {[%clk 0:02:59.4]} 9... O-O {[%clk
0:02:57.9]} 10. Rd1 {[%clk 0:02:59.1]} 10... b6 {[%clk 0:02:55.9]} 11. Bd2
{[%clk 0:02:54.2]} 11... Bb7 {[%clk 0:02:55.9]} 12. Nc3 {[%clk 0:02:54.5]} 12...
Nxc3 {[%clk 0:02:46.5]} 13. Bxc3 {[%clk 0:02:54.1]} 13... Rc8 {[%clk 0:02:47.2]}
14. Rac1 {[%clk 0:02:53.5]} 14... Na5 {[%clk 0:02:38.7]} 15. Bd3 {[%clk
0:02:51.9]} 15... Bd5 {[%clk 0:02:37.1]} 16. Bxa5 {[%clk 0:02:22]} 16... bxa5
{[%clk 0:02:35.4]} 17. b3 {[%clk 0:02:22.4]} 17... Qb6 {[%clk 0:02:29.4]} 18.
exd6 {[%clk 0:02:16.4]} 18... Bxd6 {[%clk 0:02:27.1]} 19. Ne5 {[%clk 0:02:16.4]}
19... Rxc1 {[%clk 0:02:23.2]} 20. Rxc1 {[%clk 0:02:15.9]} 20... Qxd4 {[%clk
0:02:22]} 21. Nc4 {[%clk 0:01:56.4]} 21... Qf4 {[%clk 0:02:17.4]} 22. Nxd6
{[%clk 0:01:18.9]} 22... Qxc1+ {[%clk 0:02:16.5]} 23. Qf1 {[%clk 0:01:19.2]}
23... Qd2 {[%clk 0:02:03.5]} 24. Qe2 {[%clk 0:01:11.1]} 24... Qf4 {[%clk
0:01:49.6]} 25. Nc4 {[%clk 0:01:06]} 25... Bxc4 {[%clk 0:01:48.2]} 26. Bxc4
{[%clk 0:01:06]} 26... Qc1+ {[%clk 0:01:37.2]} 27. Qf1 {[%clk 0:01:05.5]} 27...
Qxf1+ {[%clk 0:01:35.7]} 28. Kxf1 {[%clk 0:01:05.4]} 28... Rd8 {[%clk
0:01:36.5]} 29. Ke2 {[%clk 0:01:05.9]} 29... Kf8 {[%clk 0:01:36.1]} 30. a4
{[%clk 0:01:04]} 30... Ke7 {[%clk 0:01:36.4]} 31. g3 {[%clk 0:01:02.8]} 31...
Kd6 {[%clk 0:01:35.2]} 32. f4 {[%clk 0:01:01.9]} 32... Kc5 {[%clk 0:01:35.3]}
33. Ke3 {[%clk 0:01:01.6]} 33... Rd1 {[%clk 0:01:33.8]} 34. h4 {[%clk
0:01:00.2]} 34... Rc1 {[%clk 0:01:30.8]} 35. Ke4 {[%clk 0:00:49.7]} 35... Rxc4+
{[%clk 0:01:20.9]} 36. bxc4 {[%clk 0:00:49.3]} 36... Kxc4 {[%clk 0:01:21.8]} 37.
g4 {[%clk 0:00:49.6]} 37... Kb4 {[%clk 0:01:22]} 38. f5 {[%clk 0:00:36.3]} 38...
Kxa4 {[%clk 0:01:21]} 39. fxe6 {[%clk 0:00:33.5]} 39... fxe6 {[%clk 0:01:21.9]}
40. Ke5 {[%clk 0:00:33.9]} 40... Kb3 {[%clk 0:01:20.6]} 41. Kxe6 {[%clk
0:00:34.6]} 41... a4 {[%clk 0:01:21.3]} 42. Kf7 {[%clk 0:00:35.3]} 42... a3
{[%clk 0:01:18.8]} 43. Kxg7 {[%clk 0:00:36]} 43... a2 {[%clk 0:01:19.5]} 44.
Kxh7 {[%clk 0:00:36.7]} 44... a1=Q {[%clk 0:01:20.3]} 45. g5 {[%clk 0:00:37.1]}
45... Qd4 {[%clk 0:01:14.4]} 46. h5 {[%clk 0:00:36.7]} 46... a5 {[%clk
0:01:14.6]} 47. g6 {[%clk 0:00:37]} 47... Qd7+ {[%clk 0:01:07.4]} 48. g7 {[%clk
0:00:37.2]} 48... a4 {[%clk 0:01:06.5]} 49. Kh8 {[%clk 0:00:33]} 49... Qd4
{[%clk 0:01:01.8]} 50. Kh7 {[%clk 0:00:21]} 50... Qe4+ {[%clk 0:01:01.3]} 51.
Kh8 {[%clk 0:00:21]} 51... Qe5 {[%clk 0:01:01.5]} 52. h6 {[%clk 0:00:20.3]}
52... a3 {[%clk 0:01:01.3]} 53. Kh7 {[%clk 0:00:20.6]} 53... Qf5+ {[%clk
0:01:00.7]} 54. Kh8 {[%clk 0:00:20.1]} 54... Qf6 {[%clk 0:01:00]} 55. Kh7 {[%clk
0:00:19.7]} 55... Qf7 {[%clk 0:00:56.9]} 56. Kh8 {[%clk 0:00:19.6]} 56... a2
{[%clk 0:00:56.2]} 57. g8=Q {[%clk 0:00:19.9]} 57... a1=Q+ {[%clk 0:00:56.6]}
58. Qg7 {[%clk 0:00:16]} 58... Qfxg7+ {[%clk 0:00:49.1]} 59. hxg7 {[%clk
0:00:15.4]} 59... Kc4 {[%clk 0:00:49.1]} 60. Kh7 {[%clk 0:00:13.9]} 60... Qh1+
{[%clk 0:00:48.9]} 61. Kg6 {[%clk 0:00:14.2]} 61... Qg2+ {[%clk 0:00:49.2]} 62.
Kf7 {[%clk 0:00:14.2]} 62... Qf3+ {[%clk 0:00:49.7]} 63. Ke7 {[%clk 0:00:13.7]}
63... Qg4 {[%clk 0:00:48.6]} 64. Kf7 {[%clk 0:00:13.2]} 64... Qf5+ {[%clk
0:00:48.6]} 65. Ke7 {[%clk 0:00:12.3]} 65... Qg6 {[%clk 0:00:48.4]} 66. Kf8
{[%clk 0:00:12.6]} 66... Qf6+ {[%clk 0:00:49]} 67. Kg8 {[%clk 0:00:12.5]} 67...
Kd5 {[%clk 0:00:49.4]} 68. Kh7 {[%clk 0:00:12.9]} 68... Qh4+ {[%clk 0:00:49.4]}
69. Kg6 {[%clk 0:00:12.8]} 69... Qg4+ {[%clk 0:00:49.8]} 70. Kf7 {[%clk
0:00:12.4]} 70... Qf5+ {[%clk 0:00:49.7]} 71. Ke7 {[%clk 0:00:11.7]} 71... Qg6
{[%clk 0:00:49.7]} 72. Kf8 {[%clk 0:00:11.8]} 72... Qf6+ {[%clk 0:00:50.1]} 73.
Kg8 {[%clk 0:00:12.3]} 73... Ke6 {[%clk 0:00:50.5]} 74. Kh7 {[%clk 0:00:12.1]}
74... Qh4+ {[%clk 0:00:47.3]} 75. Kg6 {[%clk 0:00:11]} 75... Qg4+ {[%clk
0:00:47.6]} 76. Kh7 {[%clk 0:00:11.2]} 76... Kf7 {[%clk 0:00:46.2]} 0-1

[Event "Late-Titled-Tuesday-Blitz-April-02-2024"]
[Site "Chess.com"]
[Date "2024.04.02"]
[Round "3"]
[White "ckgchess"]
[Black "IMRosen"]
[Result "0-1"]
[WhiteElo "2934"]
[BlackElo "2664"]
[TimeControl "180+1"]
[EndTime "14:28:27 PDT"]
[Termination "IMRosen won on time"]

1. e4 {[%clk 0:02:52.6]} 1... c5 {[%clk 0:02:59.7]} 2. c3 {[%clk 0:02:51.9]}
2... d5 {[%clk 0:02:59.8]} 3. exd5 {[%clk 0:02:52.2]} 3... Qxd5 {[%clk
0:03:00.7]} 4. d4 {[%clk 0:02:52.7]} 4... Nf6 {[%clk 0:03:01.4]} 5. Nf3 {[%clk
0:02:53.3]} 5... e6 {[%clk 0:03:02.1]} 6. Na3 {[%clk 0:02:53]} 6... Nc6 {[%clk
0:03:02.3]} 7. Nb5 {[%clk 0:02:52.9]} 7... Qd8 {[%clk 0:03:02.2]} 8. dxc5 {[%clk
0:02:53.1]} 8... Bxc5 {[%clk 0:03:02.6]} 9. Qxd8+ {[%clk 0:02:49.5]} 9... Kxd8
{[%clk 0:03:03.5]} 10. Bf4 {[%clk 0:02:49.9]} 10... Ne4 {[%clk 0:03:04.1]} 11.
Rd1+ {[%clk 0:02:49.4]} 11... Bd7 {[%clk 0:02:54.7]} 12. Bg3 {[%clk 0:02:34.3]}
12... a6 {[%clk 0:02:49.4]} 13. Nbd4 {[%clk 0:02:32.1]} 13... Nxd4 {[%clk
0:02:49]} 14. Nxd4 {[%clk 0:02:32.3]} 14... Nxg3 {[%clk 0:02:48.4]} 15. hxg3
{[%clk 0:02:32.4]} 15... Ke7 {[%clk 0:02:49]} 16. Be2 {[%clk 0:02:29.4]} 16...
h6 {[%clk 0:02:44.1]} 17. Bf3 {[%clk 0:02:27.7]} 17... Rab8 {[%clk 0:02:42.3]}
18. O-O {[%clk 0:02:25.4]} 18... Rhd8 {[%clk 0:02:40]} 19. Rfe1 {[%clk
0:02:24.6]} 19... g6 {[%clk 0:02:36.6]} 20. g4 {[%clk 0:02:20.6]} 20... Kf6
{[%clk 0:02:16.3]} 21. g3 {[%clk 0:02:11.7]} 21... Be8 {[%clk 0:02:04.2]} 22.
Kg2 {[%clk 0:02:07.2]} 22... Bxd4 {[%clk 0:02:00.6]} 23. cxd4 {[%clk 0:02:06.7]}
23... Bc6 {[%clk 0:01:46.8]} 24. Re3 {[%clk 0:02:05.9]} 24... Bd5 {[%clk
0:01:40]} 25. Rc3 {[%clk 0:02:01.9]} 25... Rd7 {[%clk 0:01:38.1]} 26. a3 {[%clk
0:01:52.9]} 26... Rbd8 {[%clk 0:01:38.3]} 27. Rdd3 {[%clk 0:01:27.1]} 27...
Bxf3+ {[%clk 0:01:29.7]} 28. Rxf3+ {[%clk 0:01:27.6]} 28... Ke7 {[%clk
0:01:30.3]} 29. Rb3 {[%clk 0:01:23.6]} 29... b5 {[%clk 0:01:27.9]} 30. a4 {[%clk
0:01:23.2]} 30... bxa4 {[%clk 0:01:22.5]} 31. Rb6 {[%clk 0:01:23.5]} 31... Rxd4
{[%clk 0:01:21.5]} 32. Rxa6 {[%clk 0:01:22.8]} 32... R8d7 {[%clk 0:01:09.8]} 33.
Rf4 {[%clk 0:01:12.5]} 33... g5 {[%clk 0:00:48.5]} 34. Rxd4 {[%clk 0:01:03.1]}
34... Rxd4 {[%clk 0:00:49.4]} 35. Kf3 {[%clk 0:00:56.4]} 35... Rb4 {[%clk
0:00:47.1]} 36. Ra7+ {[%clk 0:00:55.8]} 36... Kf6 {[%clk 0:00:47.3]} 37. Ra5
{[%clk 0:00:53]} 37... Kg7 {[%clk 0:00:44.7]} 38. Ra6 {[%clk 0:00:52.8]} 38...
Kg6 {[%clk 0:00:44.6]} 39. Ra5 {[%clk 0:00:52.1]} 39... Kf6 {[%clk 0:00:45]} 40.
Ra6 {[%clk 0:00:52.2]} 40... Kg6 {[%clk 0:00:31.1]} 41. Ra5 {[%clk 0:00:52.1]}
41... h5 {[%clk 0:00:29]} 42. gxh5+ {[%clk 0:00:50.3]} 42... Kxh5 {[%clk
0:00:29.9]} 43. Ra7 {[%clk 0:00:47.7]} 43... Kg6 {[%clk 0:00:30]} 44. g4 {[%clk
0:00:39.8]} 44... Kf6 {[%clk 0:00:22.4]} 45. Ra5 {[%clk 0:00:39.7]} 45... Rb3+
{[%clk 0:00:20.8]} 46. Kg2 {[%clk 0:00:40]} 46... Rb4 {[%clk 0:00:19.2]} 47. Kg3
{[%clk 0:00:40.1]} 47... Kg6 {[%clk 0:00:19.9]} 48. Kf3 {[%clk 0:00:38.1]} 48...
f5 {[%clk 0:00:17.5]} 49. Ra6 {[%clk 0:00:23.2]} 49... fxg4+ {[%clk 0:00:17.2]}
50. Kg3 {[%clk 0:00:23.5]} 50... Kf5 {[%clk 0:00:17.8]} 51. Ra5+ {[%clk
0:00:20.8]} 51... e5 {[%clk 0:00:18.1]} 52. Ra8 {[%clk 0:00:18.4]} 52... Rb3+
{[%clk 0:00:16.1]} 53. Kg2 {[%clk 0:00:18.5]} 53... Rb4 {[%clk 0:00:10.4]} 54.
Kg3 {[%clk 0:00:19.2]} 54... Ke4 {[%clk 0:00:06.3]} 55. Kxg4 {[%clk 0:00:20.1]}
55... Kd3+ {[%clk 0:00:06.9]} 56. Kxg5 {[%clk 0:00:20.2]} 56... Kc2 {[%clk
0:00:06.5]} 57. Kf5 {[%clk 0:00:18.4]} 57... e4 {[%clk 0:00:03.8]} 58. Kf4
{[%clk 0:00:06.2]} 58... Kxb2 {[%clk 0:00:04.3]} 59. Ke3 {[%clk 0:00:07]} 59...
a3 {[%clk 0:00:04.8]} 60. Rd8 {[%clk 0:00:02]} 60... a2 {[%clk 0:00:04.8]} 61.
Rd2+ {[%clk 0:00:02.8]} 61... Kb1 {[%clk 0:00:05.1]} 62. Rd1+ {[%clk 0:00:03.5]}
62... Kc2 {[%clk 0:00:05.6]} 63. Ra1 {[%clk 0:00:03]} 63... Kb2 {[%clk
0:00:06.2]} 0-1

[Event "Late-Titled-Tuesday-Blitz-April-02-2024"]
[Site "Chess.com"]
[Date "2024.04.02"]
[Round "3"]
[White "sacrifoice"]
[Black "Fh2411"]
[Result "0-1"]
[WhiteElo "2280"]
[BlackElo "2573"]
[TimeControl "180+1"]
[EndTime "14:28:28 PDT"]
[Termination "Fh2411 won on time"]

1. e4 {[%clk 0:02:59.5]} 1... c5 {[%clk 0:02:49.7]} 2. Nf3 {[%clk 0:02:56.7]}
2... e6 {[%clk 0:02:49.9]} 3. c4 {[%clk 0:02:52.2]} 3... a6 {[%clk 0:02:49.6]}
4. d4 {[%clk 0:02:52.1]} 4... cxd4 {[%clk 0:02:50.5]} 5. Nxd4 {[%clk 0:02:51.9]}
5... Nf6 {[%clk 0:02:51]} 6. Nc3 {[%clk 0:02:51.7]} 6... Bb4 {[%clk 0:02:51.6]}
7. Bd3 {[%clk 0:02:48.6]} 7... Nc6 {[%clk 0:02:51.1]} 8. Nc2 {[%clk 0:02:42.8]}
8... Bxc3+ {[%clk 0:02:48.8]} 9. bxc3 {[%clk 0:02:43.7]} 9... O-O {[%clk
0:02:42.7]} 10. O-O {[%clk 0:02:41]} 10... d6 {[%clk 0:02:42.4]} 11. f4 {[%clk
0:02:31.1]} 11... Qc7 {[%clk 0:02:33.5]} 12. g4 {[%clk 0:02:26.4]} 12... Rd8
{[%clk 0:02:21.3]} 13. g5 {[%clk 0:02:26.1]} 13... Nd7 {[%clk 0:02:21.4]} 14.
Qh5 {[%clk 0:02:19.9]} 14... Nf8 {[%clk 0:02:21.5]} 15. f5 {[%clk 0:02:15]}
15... Ne5 {[%clk 0:02:14]} 16. Be2 {[%clk 0:02:04.2]} 16... Nxc4 {[%clk
0:01:57.1]} 17. f6 {[%clk 0:01:40.7]} 17... Ng6 {[%clk 0:01:43.4]} 18. fxg7
{[%clk 0:01:36.4]} 18... e5 {[%clk 0:01:21.1]} 19. Nb4 {[%clk 0:01:30.5]} 19...
Be6 {[%clk 0:01:20.4]} 20. Rf3 {[%clk 0:01:19.3]} 20... Qc5+ {[%clk 0:00:50.4]}
21. Kh1 {[%clk 0:01:10.5]} 21... a5 {[%clk 0:00:48.8]} 22. Nd5 {[%clk
0:00:44.5]} 22... Bxd5 {[%clk 0:00:48.1]} 23. exd5 {[%clk 0:00:43.4]} 23... Qxd5
{[%clk 0:00:48.6]} 24. Kg1 {[%clk 0:00:29.1]} 24... Qc5+ {[%clk 0:00:35.1]} 25.
Kf1 {[%clk 0:00:26.9]} 25... Rd7 {[%clk 0:00:17.8]} 26. Rh3 {[%clk 0:00:26]}
26... Kxg7 {[%clk 0:00:17.9]} 27. Qxh7+ {[%clk 0:00:25.3]} 27... Kf8 {[%clk
0:00:18.2]} 28. Bd3 {[%clk 0:00:19.5]} 28... e4 {[%clk 0:00:16.2]} 29. Bxe4
{[%clk 0:00:17.3]} 29... Nce5 {[%clk 0:00:16.8]} 30. Bf4 {[%clk 0:00:14.9]}
30... Qc4+ {[%clk 0:00:16.9]} 31. Bd3 {[%clk 0:00:11]} 31... Qxf4+ {[%clk
0:00:17.2]} 32. Kg1 {[%clk 0:00:10.5]} 32... Nxd3 {[%clk 0:00:15.7]} 33. Rf1
{[%clk 0:00:09.3]} 33... Qg4+ {[%clk 0:00:15.5]} 34. Rg3 {[%clk 0:00:09.5]}
34... Qe4 {[%clk 0:00:15]} 35. Qh6+ {[%clk 0:00:08]} 35... Ke7 {[%clk
0:00:14.5]} 36. Qh3 {[%clk 0:00:07.3]} 36... Nde5 {[%clk 0:00:13.8]} 37. Re3
{[%clk 0:00:07.4]} 37... Qd5 {[%clk 0:00:13.4]} 38. Qf5 {[%clk 0:00:07.7]} 38...
Qe6 {[%clk 0:00:13.7]} 39. Qc2 {[%clk 0:00:06.8]} 39... Rh8 {[%clk 0:00:13.9]}
40. Qe2 {[%clk 0:00:06.3]} 40... Rh3 {[%clk 0:00:13.2]} 41. Rf6 {[%clk
0:00:04.8]} 41... Rxe3 {[%clk 0:00:08.2]} 42. Rxe6+ {[%clk 0:00:03.9]} 42...
Kxe6 {[%clk 0:00:09.1]} 43. Qxe3 {[%clk 0:00:04.2]} 43... Rc7 {[%clk 0:00:09.6]}
44. Qh3+ {[%clk 0:00:04.3]} 44... Ke7 {[%clk 0:00:09.6]} 45. Qe3 {[%clk
0:00:04.1]} 45... Rc4 {[%clk 0:00:09.7]} 46. h3 {[%clk 0:00:03.6]} 46... Nf4
{[%clk 0:00:07.6]} 47. Qb6 {[%clk 0:00:03.1]} 47... Nxh3+ {[%clk 0:00:06.7]} 48.
Kh2 {[%clk 0:00:03.1]} 48... Nxg5 {[%clk 0:00:06.7]} 49. Qxb7+ {[%clk 0:00:03]}
49... Kf6 {[%clk 0:00:07.4]} 50. Qb8 {[%clk 0:00:02]} 50... Ne4 {[%clk
0:00:05.6]} 0-1

[Event "Late-Titled-Tuesday-Blitz-April-02-2024"]
[Site "Chess.com"]
[Date "2024.04.02"]
[Round "3"]
[White "Defend1r"]
[Black "Angry_Twin"]
[Result "1-0"]
[WhiteElo "2661"]
[BlackElo "2916"]
[TimeControl "180+1"]
[EndTime "14:28:33 PDT"]
[Termination "Defend1r won on time"]

1. e4 {[%clk 0:03:00.4]} 1... c5 {[%clk 0:03:00.3]} 2. Nf3 {[%clk 0:03:00.7]}
2... d6 {[%clk 0:03:01]} 3. c3 {[%clk 0:03:00.7]} 3... Nf6 {[%clk 0:03:01.3]} 4.
h3 {[%clk 0:03:01]} 4... g6 {[%clk 0:02:59]} 5. Bd3 {[%clk 0:03:01]} 5... Bg7
{[%clk 0:02:58.7]} 6. Bc2 {[%clk 0:03:01.7]} 6... e5 {[%clk 0:02:59]} 7. d4
{[%clk 0:03:02.4]} 7... exd4 {[%clk 0:02:58.2]} 8. cxd4 {[%clk 0:03:00.1]} 8...
cxd4 {[%clk 0:02:58.6]} 9. Nxd4 {[%clk 0:02:59.6]} 9... O-O {[%clk 0:02:58.8]}
10. O-O {[%clk 0:02:58.4]} 10... Nc6 {[%clk 0:02:59.5]} 11. Nxc6 {[%clk
0:02:58.1]} 11... bxc6 {[%clk 0:03:00.4]} 12. Nc3 {[%clk 0:02:56.1]} 12... d5
{[%clk 0:03:00.5]} 13. exd5 {[%clk 0:02:55.2]} 13... Nxd5 {[%clk 0:02:56.2]} 14.
Nxd5 {[%clk 0:02:53.8]} 14... cxd5 {[%clk 0:02:57.1]} 15. Qf3 {[%clk 0:02:41.7]}
15... Be6 {[%clk 0:02:56.1]} 16. Rd1 {[%clk 0:02:39.2]} 16... d4 {[%clk
0:02:47.3]} 17. Bd3 {[%clk 0:02:37.6]} 17... Qb6 {[%clk 0:02:46.7]} 18. b3
{[%clk 0:02:36]} 18... Rac8 {[%clk 0:02:46.5]} 19. Ba3 {[%clk 0:02:31.5]} 19...
Rfd8 {[%clk 0:02:44.2]} 20. Be7 {[%clk 0:02:31.6]} 20... Rd7 {[%clk 0:02:33.9]}
21. Bf6 {[%clk 0:02:15.1]} 21... Rc3 {[%clk 0:02:28.5]} 22. Bxg7 {[%clk
0:02:08.2]} 22... Kxg7 {[%clk 0:02:28.5]} 23. Qf4 {[%clk 0:02:04.1]} 23... Qc5
{[%clk 0:02:26.5]} 24. h4 {[%clk 0:01:56.9]} 24... a5 {[%clk 0:02:24.3]} 25. Qb8
{[%clk 0:01:41.8]} 25... Bg4 {[%clk 0:02:08.5]} 26. f3 {[%clk 0:01:41.7]} 26...
Be6 {[%clk 0:02:08.4]} 27. Qf4 {[%clk 0:01:34.7]} 27... h5 {[%clk 0:01:49.3]}
28. Kh2 {[%clk 0:01:33]} 28... Qd6 {[%clk 0:01:22.2]} 29. Qxd6 {[%clk
0:01:31.2]} 29... Rxd6 {[%clk 0:01:23]} 30. Kg3 {[%clk 0:01:23.4]} 30... Kf6
{[%clk 0:01:23.4]} 31. Kf4 {[%clk 0:01:23.5]} 31... a4 {[%clk 0:00:41.6]} 32.
bxa4 {[%clk 0:01:21.9]} 32... Ra3 {[%clk 0:00:42.5]} 33. Bb5 {[%clk 0:01:16.6]}
33... d3 {[%clk 0:00:39.6]} 34. Rd2 {[%clk 0:01:16.9]} 34... Rd4+ {[%clk
0:00:39.8]} 35. Ke3 {[%clk 0:01:09.2]} 35... Ke5 {[%clk 0:00:40]} 36. g3 {[%clk
0:01:02.3]} 36... Bf5 {[%clk 0:00:39.4]} 37. f4+ {[%clk 0:00:55.4]} 37... Kd5
{[%clk 0:00:39.1]} 38. Bc6+ {[%clk 0:00:55.3]} 38... Kc5 {[%clk 0:00:38.1]} 39.
Rc1+ {[%clk 0:00:55.5]} 39... Rc4 {[%clk 0:00:38.4]} 40. Rxc4+ {[%clk
0:00:55.3]} 40... Kxc4 {[%clk 0:00:39.3]} 41. Bb5+ {[%clk 0:00:55.8]} 41... Kc5
{[%clk 0:00:19.2]} 42. Bxd3 {[%clk 0:00:55.6]} 42... Rxa4 {[%clk 0:00:18.1]} 43.
Bxf5 {[%clk 0:00:54.6]} 43... gxf5 {[%clk 0:00:19]} 44. Kf2 {[%clk 0:00:47]}
44... Ra3 {[%clk 0:00:18.5]} 45. Kg2 {[%clk 0:00:46.7]} 45... Kc6 {[%clk
0:00:18.9]} 46. Kh3 {[%clk 0:00:45.2]} 46... Ra4 {[%clk 0:00:19.1]} 47. Re2
{[%clk 0:00:44.7]} 47... Ra5 {[%clk 0:00:14.9]} 48. Re5 {[%clk 0:00:39.9]} 48...
Rxa2 {[%clk 0:00:09.3]} 49. Rxf5 {[%clk 0:00:40.1]} 49... Kd6 {[%clk 0:00:07.4]}
50. Rxh5 {[%clk 0:00:39.6]} 50... Ke6 {[%clk 0:00:07.4]} 51. Kg4 {[%clk
0:00:36.2]} 51... Ra4 {[%clk 0:00:06.9]} 52. Rb5 {[%clk 0:00:29.9]} 52... Kf6
{[%clk 0:00:06.9]} 53. h5 {[%clk 0:00:29.3]} 53... Ra6 {[%clk 0:00:06.5]} 54.
Rb7 {[%clk 0:00:19]} 54... Kg7 {[%clk 0:00:06.1]} 55. Kg5 {[%clk 0:00:19.2]}
55... Rc6 {[%clk 0:00:05.6]} 56. f5 {[%clk 0:00:19.4]} 56... Kg8 {[%clk
0:00:03.7]} 57. f6 {[%clk 0:00:11.3]} 57... Rc8 {[%clk 0:00:01.6]} 58. Kh6
{[%clk 0:00:11.4]} 58... Rd8 {[%clk 0:00:00.4]} 59. g4 {[%clk 0:00:11.7]} 1-0